bitfinex/quotes_ETHUSD_20250131
["timestamp","ask_amount","ask_price","bid_price","bid_amount"]
[1738342319238,2.93764,3404.1,3402.2,0.7275]
[1738342319441,0.55,3404.0,3403.4,1.175497]
[1738342319640,3.48792,3403.8,3402.9,0.7275]
[1738342319835,4.14835332,3403.6,3402.9,1.175497]
[1738342320138,2.82675332,3403.3,3402.6,0.7275]
[1738342320337,3.70547837,3403.5,3402.6,0.7275]
[1738342320583,0.55,3403.4,3402.6,0.7275]
[1738342320745,2.82675332,3403.3,3402.6,0.7275]
[1738342320949,3.90596149,3403.3,3402.5,1.1758]
[1738342321153,0.55,3403.1,3402.5,1.1758]
[1738342321687,0.55,3403.1,3402.2,0.7275]
[1738342321688,0.55,3402.9,3402.2,0.7275]
[1738342321901,0.55,3403.2,3402.2,1.903415]
[1738342322190,0.55,3403.0,3402.2,1.903415]
[1738342324285,3.38339181,3403.4,3402.3,0.01471955]
[1738342324491,3.38339181,3403.4,3402.2,1.903415]
[1738342324663,0.55,3403.3,3402.3,7.50662]
[1738342324872,0.41373918,3403.2,3402.3,7.50662]
[1738342325507,0.0075,3403.1,3402.3,7.50662]
[1738342325666,0.0075,3403.1,3400.1,3.17923082]
[1738342325667,0.55,3402.5,3401.4,8.23412]
[1738342325866,0.55,3402.5,3401.5,1.176134]
[1738342326178,1.22872979,3402.5,3401.5,1.176134]
[1738342326500,0.55,3402.3,3401.5,1.176134]
[1738342326703,0.0075,3402.2,3401.4,0.7275]
[1738342327051,0.55,3402.3,3401.4,0.7275]
[1738342328600,0.55,3402.0,3400.4,3.0075]
[1738342328803,0.55,3402.0,3401.0,0.7275]
[1738342329108,0.55,3402.0,3401.2,0.7667]
[1738342330560,3.38339181,3402.1,3401.2,0.7667]
[1738342330561,0.5575,3402.3,3401.2,0.7667]
[1738342331901,3.49673,3402.3,3401.2,0.7667]
[1738342332201,0.0075,3402.0,3401.2,0.7667]
[1738342332375,0.55,3401.8,3400.8,11.23412]
[1738342332575,0.55,3401.8,3400.9,1.176325]
[1738342333257,0.55,3401.8,3400.9,4.176325]
[1738342334760,0.3012,3401.8,3400.9,4.176325]
[1738342335396,4.20689181,3402.1,3400.9,4.176325]
[1738342335609,0.8235,3402.1,3401.0,1.25578852]
[1738342335757,0.8235,3402.1,3401.0,1.2410445]
[1738342336097,0.8235,3402.1,3401.1,0.01473374]
[1738342336305,0.8235,3402.1,3401.0,1.2410445]
[1738342336604,0.8235,3402.1,3401.1,11.87324232]
[1738342336804,0.55,3402.0,3401.1,11.87324232]
[1738342336990,0.55,3402.0,3401.2,0.7275]
[1738342337390,0.8235,3402.1,3401.2,0.7275]
[1738342337705,0.204,3403.0,3401.5,0.7275]
[1738342337907,0.204,3403.0,3401.1,1.36662232]
[1738342337908,0.8071,3403.2,3401.8,0.7275]
[1738342338257,2.93854,3403.1,3401.8,0.7275]
[1738342338661,0.8071,3403.2,3401.8,0.7275]
[1738342338911,0.55,3403.1,3401.8,0.7275]
[1738342339083,2.93873,3402.9,3401.8,0.7275]
[1738342339293,3.66583974,3402.9,3401.8,1.9632532]
[1738342339489,0.8031,3402.7,3401.8,1.9632532]
[1738342339670,0.55,3402.6,3401.8,1.9632532]
[1738342339902,0.55,3402.4,3401.7,3.0]
[1738342340829,0.55,3402.4,3401.6,7.50662]
[1738342341603,3.48916,3402.4,3401.6,7.50662]
[1738342341811,0.55,3402.2,3401.6,7.50662]
[1738342342112,0.55,3402.2,3401.5,3.0]
[1738342344117,0.55,3402.2,3401.5,4.123412]
[1738342345307,0.55,3402.2,3401.5,1.123412]
[1738342345510,3.38100974,3402.2,3401.4,3.0]
[1738342346596,0.55,3402.2,3401.4,3.0]
[1738342346823,0.55,3402.2,3401.4,3.01473373]
[1738342347038,0.55,3402.2,3401.4,3.0]
[1738342350030,0.55,3402.0,3401.4,3.0]
[1738342350230,2.93937,3402.1,3401.3,7.50662]
[1738342350433,1.26841855,3402.0,3401.3,7.50662]
[1738342351342,1.26841855,3402.0,3401.1,3.0]
[1738342353530,0.55,3402.1,3401.1,3.0]
[1738342355528,1.4220249,3402.3,3401.1,3.0]
[1738342355851,0.8271,3402.3,3401.2,0.01473883]
[1738342356457,0.8271,3402.3,3401.3,0.7275]
[1738342356748,0.1,3404.0,3401.1,3.0]
[1738342356749,0.8264,3402.7,3401.4,0.01472583]
[1738342356950,0.8264,3403.1,3401.8,0.0075]
[1738342357116,0.8264,3403.1,3402.0,3.0]
[1738342357649,0.55,3403.0,3402.0,3.0]
[1738342357947,0.8264,3403.1,3402.0,3.0]
[1738342358153,0.55,3403.0,3402.1,1.13812806]
[1738342358333,0.8264,3403.1,3402.1,1.13812806]
[1738342359108,0.8264,3403.1,3402.2,0.7275]
[1738342360039,0.8264,3403.1,3402.2,0.74221151]
[1738342360233,0.8264,3403.1,3402.4,3.0]
[1738342360422,0.8264,3403.1,3402.5,1.12488315]
[1738342360635,0.8264,3403.1,3402.6,3.0]
[1738342362845,0.55,3403.0,3402.5,7.50662]
[1738342364753,0.8082,3402.9,3402.5,7.50662]
[1738342365054,0.55,3402.8,3402.5,7.50662]
[1738342366252,0.55,3402.8,3402.1,3.0]
[1738342366749,0.8082,3402.9,3402.2,0.01471982]
[1738342366919,2.5465,3404.2,3402.2,0.01471982]
[1738342366920,0.796,3403.3,3402.3,0.7275]
[1738342367121,0.204,3403.7,3402.4,0.01470319]
[1738342367323,0.796,3403.6,3402.4,0.01470319]
[1738342367811,0.796,3403.6,3402.3,0.7275]
[1738342368010,0.796,3403.6,3402.4,0.4778162]
[1738342368226,0.55,3403.5,3402.4,0.4778162]
[1738342368858,0.796,3403.6,3402.6,3.0]
[1738342369035,0.796,3403.6,3402.8,0.7275]
[1738342369758,1.3368,3403.9,3402.8,0.7275]
[1738342369965,1.3368,3403.9,3402.9,3.37421997]
[1738342370261,0.55,3403.4,3402.8,7.50662]
[1738342375064,0.55,3403.4,3402.6,7.50662]
[1738342376843,0.55,3403.2,3402.6,7.50662]
[1738342377063,0.58673363,3403.2,3402.5,4.175618]
[1738342377398,0.55,3403.2,3402.5,4.175618]
[1738342378647,0.55,3403.2,3402.5,5.3438418]
[1738342379492,0.7786,3403.3,3402.5,4.175618]
[1738342380892,0.7786,3403.3,3402.6,0.0147071]
[1738342381131,0.7786,3403.3,3402.7,7.50662]
[1738342381391,0.8213,3403.9,3402.8,10.52132712]
[1738342381596,0.8213,3403.9,3403.0,3.0]
[1738342381778,0.8213,3404.5,3403.1,0.7275]
[1738342381946,0.8213,3404.5,3403.2,3.0]
[1738342383604,0.8213,3404.5,3403.4,3.0]
[1738342383948,0.8213,3404.5,3403.6,3.0]
[1738342384191,0.55,3404.4,3403.7,1.123412]
[1738342384399,0.55,3404.4,3403.7,8.630032]
[1738342384694,0.55,3404.4,3403.8,3.0]
[1738342384927,0.55,3404.2,3403.8,3.0]
[1738342385211,0.55,3404.2,3403.7,7.50662]
[1738342385716,0.58672272,3404.2,3403.7,7.50662]
[1738342385869,0.55,3404.0,3403.7,7.50662]
[1738342386217,0.55,3403.6,3403.0,7.50662]
[1738342386383,0.7817,3403.7,3403.1,10.50662]
[1738342387774,0.55,3403.6,3402.8,3.0]
[1738342392218,0.55,3403.6,3402.8,3.01470292]
[1738342392372,0.7817,3403.7,3402.9,1.12488229]
[1738342393019,0.7817,3403.7,3402.9,8.63150229]
[1738342395415,0.7817,3403.7,3403.0,0.01469867]
[1738342395574,0.7817,3403.7,3402.9,8.63150229]
[1738342396319,0.7861,3404.3,3403.0,3.74219869]
[1738342396475,0.7861,3404.3,3403.2,3.0]
[1738342397482,0.7861,3404.3,3402.5,1.5936735]
[1738342397483,0.7861,3404.7,3403.5,0.0075]
[1738342397682,0.7861,3404.7,3403.4,3.7275]
[1738342398434,0.55,3404.6,3403.4,3.7275]
[1738342398582,0.55,3404.6,3403.5,1.123412]
[1738342399115,0.55,3404.4,3403.5,1.123412]
[1738342399287,0.55,3404.4,3403.6,3.0]
[1738342399831,0.8125,3404.6,3403.6,3.0]
[1738342401941,0.8125,3404.6,3403.7,0.7275]
[1738342402102,0.8125,3404.6,3403.8,1.123412]
[1738342404628,0.8125,3404.6,3403.9,7.50662]
[1738342404828,0.7727,3404.9,3404.0,3.0]
[1738342405923,0.55,3404.8,3404.0,3.0]
[1738342406496,1.3256,3404.6,3404.0,3.0]
[1738342406823,0.55,3404.2,3403.4,7.50662]
[1738342407137,0.55,3404.2,3403.6,3.0]
[1738342410739,0.7967,3404.3,3403.6,10.50662]
[1738342410942,0.7967,3404.3,3403.7,0.7275]
[1738342411098,0.55,3404.9,3403.7,0.7275]
[1738342411299,0.55,3404.9,3403.8,1.123412]
[1738342412197,0.55,3404.9,3403.8,4.123412]
[1738342412936,0.55,3404.7,3403.8,4.123412]
[1738342413442,0.55,3404.7,3403.8,3.0]
[1738342413603,0.55,3404.5,3403.8,3.0]
[1738342414214,0.55,3404.4,3403.8,3.0]
[1738342414547,0.55,3404.4,3403.7,7.50662]
[1738342414854,0.55,3404.2,3403.7,7.50662]
[1738342415052,0.55,3404.2,3403.2,7.50662]
[1738342415355,0.55,3404.2,3403.3,3.823412]
[1738342418158,0.55,3404.2,3403.3,3.823412]
[1738342419616,0.55,3404.2,3403.4,7.50662]
[1738342420461,0.7824,3404.3,3403.4,7.50662]
[1738342420634,0.7824,3404.3,3403.5,0.7275]
[1738342425578,0.7824,3404.3,3403.7,3.0]
[1738342425893,0.55,3404.2,3403.7,3.0]
[1738342431298,0.55,3404.2,3403.8,1.050662]
[1738342431647,0.7824,3404.3,3403.5,3.0]
[1738342431847,0.7574,3404.9,3403.6,0.7275]
[1738342432079,0.55,3404.8,3403.8,3.0]
[1738342432290,0.7574,3404.9,3403.8,3.0]
[1738342432451,0.7574,3404.9,3403.9,1.123412]
[1738342432888,0.7574,3404.9,3404.1,3.0]
[1738342433089,0.7574,3404.9,3404.2,0.7275]
[1738342433558,0.7574,3404.9,3404.1,3.0]
[1738342436989,0.55,3404.8,3404.1,3.0]
[1738342437186,0.55,3404.8,3404.2,1.2357532]
[1738342437707,0.55,3404.8,3404.1,10.50662]
[1738342437878,0.757,3404.5,3404.1,7.50662]
[1738342438417,0.55,3404.4,3404.1,7.50662]
[1738342443376,0.55,3404.4,3403.6,3.0]
[1738342443624,0.55,3404.4,3403.7,1.2409455]
[1738342446334,0.55,3404.4,3403.5,3.0]
[1738342447436,0.7886,3405.2,3403.6,0.7275]
[1738342447805,0.7573,3405.0,3403.6,0.7275]
[1738342448134,0.55,3404.9,3403.6,0.7275]
[1738342448313,0.7573,3405.0,3403.6,0.7275]
[1738342448494,0.7573,3405.0,3403.7,1.123412]
[1738342449221,0.55,3404.9,3403.7,1.123412]
[1738342449434,0.55,3404.9,3403.8,7.50662]
[1738342450824,0.55,3404.9,3403.9,0.7275]
[1738342450982,0.7828,3405.6,3404.1,0.735]
[1738342451182,0.7828,3405.6,3404.4,0.7275]
[1738342453040,0.55,3405.5,3404.4,0.7275]
[1738342454352,0.55,3405.3,3404.4,0.7275]
[1738342455402,0.55,3405.3,3404.4,8.23412]
[1738342461115,2.93609,3405.9,3404.5,0.7275]
[1738342461472,1.35858642,3406.3,3404.7,3.7275]
[1738342461622,0.7823,3406.3,3404.9,3.0]
[1738342461819,0.7823,3406.3,3405.0,0.7275]
[1738342462028,1.48504031,3406.7,3405.0,0.7275]
[1738342462335,0.03670084,3406.7,3405.0,0.7275]
[1738342462535,0.8081,3406.6,3405.0,0.7275]
[1738342462776,0.8081,3406.6,3405.1,1.850912]
[1738342463118,0.58670084,3406.5,3405.1,1.850912]
[1738342463559,0.55,3406.3,3405.1,1.850912]
[1738342463736,0.58670298,3406.3,3405.1,1.850912]
[1738342463945,0.55,3406.3,3405.2,0.7275]
[1738342464256,0.55,3406.3,3405.3,0.1850912]
[1738342466264,0.55,3406.1,3405.3,0.1850912]
[1738342466565,0.55,3405.8,3405.3,0.1850912]
[1738342467174,0.55,3406.2,3405.3,0.1850912]
[1738342467373,0.978447,3406.2,3405.3,0.1850912]
[1738342467552,0.978447,3406.2,3405.2,0.7275]
[1738342469330,2.83850974,3406.6,3405.2,0.7275]
[1738342469655,3.76326655,3406.5,3405.2,0.7275]
[1738342470026,0.55,3406.2,3405.2,0.7275]
[1738342470429,0.55,3406.4,3405.2,0.7275]
[1738342472193,1.48504031,3406.7,3405.5,0.7275]
[1738342472411,1.48504031,3406.7,3405.7,0.7275]
[1738342473384,1.45197763,3406.8,3405.7,0.7275]
[1738342474597,1.45197763,3406.8,3405.9,0.7275]
[1738342474896,0.59329198,3406.9,3406.1,0.7275]
[1738342475113,1.43289755,3407.4,3406.1,0.7275]
[1738342475264,1.43289755,3407.4,3406.2,7.50662]
[1738342475465,1.43289755,3407.4,3406.3,0.7275]
[1738342476076,1.43447899,3407.2,3406.3,0.7275]
[1738342476283,0.57532411,3407.0,3406.3,0.7275]
[1738342476517,0.57532411,3407.0,3406.3,3.7275]
[1738342476518,0.55,3406.9,3406.3,3.7275]
[1738342477005,0.55,3406.9,3406.3,0.7275]
[1738342477770,0.55,3406.7,3406.3,0.7275]
[1738342480511,0.55,3406.7,3406.1,11.23412]
[1738342480814,0.55,3406.7,3406.1,0.7275]
[1738342480997,0.55,3406.7,3405.8,3.7275]
[1738342481495,1.18023217,3406.7,3405.8,3.7275]
[1738342481874,0.03669937,3406.6,3405.8,3.7275]
[1738342482210,1.40850503,3406.9,3405.9,0.7275]
[1738342482622,0.55,3406.8,3406.0,0.7275]
[1738342482825,2.00197763,3406.8,3406.1,0.4902048]
[1738342483926,2.00197763,3406.8,3406.2,0.7275]
[1738342486737,0.774,3407.4,3406.2,0.7275]
[1738342487029,0.55,3407.3,3406.4,3.0]
[1738342487344,0.55,3407.3,3406.6,0.7275]
[1738342489933,0.5938565,3407.4,3406.6,0.7275]
[1738342490520,0.55,3407.3,3406.6,0.7275]
[1738342490717,0.5938565,3407.4,3406.6,0.7275]
[1738342491229,0.55,3407.3,3406.6,0.7275]
[1738342491835,0.5938565,3407.4,3406.6,0.7275]
[1738342492015,0.55,3407.3,3406.6,0.7275]
[1738342492221,0.5938565,3407.4,3406.6,0.7275]
[1738342492748,0.55,3407.8,3406.6,0.7275]
[1738342493050,1.41699507,3407.9,3406.6,0.7275]
[1738342493232,0.57522876,3407.5,3406.2,0.7425]
[1738342493618,0.57522876,3407.5,3406.2,0.735]
[1738342494204,0.55,3407.4,3406.2,0.735]
[1738342495751,0.55,3407.8,3406.2,0.735]
[1738342496402,0.55,3407.5,3406.2,0.735]
[1738342496853,1.45110606,3408.0,3406.2,0.735]
[1738342497223,1.96699507,3407.9,3406.2,0.735]
[1738342501273,0.55,3408.0,3406.2,0.735]
[1738342502071,0.90703304,3408.0,3406.2,0.735]
[1738342502841,0.03668487,3407.9,3406.2,0.735]
[1738342503032,0.03668671,3407.9,3406.2,0.735]
[1738342503469,0.55,3407.6,3406.2,0.7275]
[1738342503973,0.55,3407.4,3406.2,0.7275]
[1738342504328,0.55,3407.2,3406.2,0.7275]
[1738342504676,0.55,3407.0,3406.2,0.7275]
[1738342505274,0.8206,3407.2,3405.9,1.902048]
[1738342505275,0.55,3407.1,3405.9,1.902048]
[1738342505583,0.925545,3407.1,3405.9,1.902048]
[1738342509870,0.925545,3407.1,3405.9,1.174548]
[1738342510076,0.925545,3407.1,3406.0,0.7275]
[1738342511533,0.8113,3407.8,3406.0,0.7275]
[1738342511834,3.73825,3407.8,3406.0,0.7275]
[1738342512270,0.55,3407.7,3406.0,0.7275]
[1738342512469,0.55,3407.8,3406.0,0.7275]
[1738342512876,0.58668971,3407.8,3406.0,0.7275]
[1738342513085,0.44554569,3407.7,3406.2,0.7275]
[1738342515388,0.55,3407.5,3406.2,0.7275]
[1738342515577,0.55,3407.3,3406.2,0.7275]
[1738342516091,0.55,3407.4,3406.2,0.7275]
[1738342516452,0.55,3407.2,3406.2,0.7275]
[1738342517981,3.49232,3407.4,3406.2,0.7275]
[1738342518199,0.55,3407.2,3406.2,0.7275]
[1738342519208,0.55,3407.0,3406.2,0.7275]
[1738342519382,1.029828,3407.0,3406.2,0.7275]
[1738342519910,0.55,3407.0,3406.2,0.7275]
[1738342521447,0.55,3406.8,3406.2,0.7275]
[1738342521583,0.55,3406.8,3405.9,1.174548]
[1738342521779,3.49265,3407.0,3406.0,0.7275]
[1738342522021,0.55,3406.8,3406.0,0.7275]
[1738342532324,0.55,3406.8,3406.1,0.05243324]
[1738342533519,0.55,3406.6,3406.1,0.05243324]
[1738342533719,2.9354,3406.7,3406.1,0.05243324]
[1738342533986,0.5575,3406.6,3406.1,0.05243324]
[1738342534262,0.55,3406.4,3406.1,0.05243324]
[1738342541138,6.22055,3406.5,3406.1,0.05243324]
[1738342541139,3.49332,3406.2,3406.1,0.05243324]
[1738342541328,0.5575,3406.2,3406.1,0.05243324]
[1738342541538,3.49332,3406.2,3406.1,0.05243324]
[1738342541737,4.171156,3406.2,3406.1,0.05243324]
[1738342543179,1.235336,3406.2,3406.1,0.05243324]
[1738342543472,4.171156,3406.2,3406.1,0.05243324]
[1738342544337,4.959556,3406.2,3406.1,0.05243324]
[1738342549638,2.016236,3406.2,3406.1,0.05243324]
[1738342549785,2.93544,3406.7,3406.1,0.77993324]
[1738342549985,2.93548,3406.6,3406.1,0.77993324]
[1738342550288,3.48558,3406.5,3406.1,0.05243324]
[1738342550794,0.03670276,3406.6,3406.1,0.05243324]
[1738342550795,4.29262,3406.2,3406.1,0.05243324]
[1738342550994,4.776882,3406.2,3406.1,0.05243324]
[1738342552304,3.977582,3406.2,3406.1,0.05243324]
[1738342552518,1.041762,3406.2,3406.1,0.05243324]
[1738342552955,3.977582,3406.2,3406.1,0.05243324]
[1738342554082,0.484262,3406.2,3406.1,0.05243324]
[1738342554352,3.9005,3406.7,3406.1,0.77993324]
[1738342554637,0.0075,3406.6,3406.1,0.77993324]
[1738342555630,0.5575,3406.6,3406.1,0.77993324]
[1738342556610,2.93606,3406.0,3404.1,2.82325887]
[1738342556833,0.55,3405.7,3404.1,2.82325887]
[1738342557011,0.55,3405.5,3405.2,1.175038]
[1738342557314,0.55,3405.6,3404.4,2.82325887]
[1738342557490,0.7513,3405.9,3404.5,1.75740289]
[1738342557690,0.7513,3405.9,3404.8,3.0]
[1738342558542,0.55,3405.8,3404.8,3.0]
[1738342559135,3.48618,3405.8,3404.8,3.0]
[1738342559457,0.55,3405.6,3404.5,4.175077]
[1738342559636,0.55,3405.6,3404.6,0.3899]
[1738342559805,0.55,3405.6,3404.8,0.3899]
[1738342560155,3.30517,3406.5,3405.1,3.0]
[1738342560306,3.30517,3406.5,3405.3,2.82325887]
[1738342560507,2.93565,3406.4,3405.4,0.3899]
[1738342560942,0.55,3406.2,3405.4,0.3899]
[1738342561335,3.48583,3406.2,3405.4,0.3899]
[1738342561766,0.55,3406.0,3405.4,0.3899]
[1738342562081,3.48625,3405.7,3405.1,0.3899]
[1738342562253,0.55,3405.5,3405.1,0.3899]
[1738342562850,0.55,3405.3,3405.1,0.3899]
[1738342563390,0.55,3405.5,3405.1,0.3899]
[1738342563549,0.55,3405.3,3404.6,0.3899]
[1738342563960,3.48661,3405.3,3404.6,0.3899]
[1738342564166,0.55,3405.1,3404.6,0.3899]
[1738342564745,0.55,3405.3,3404.6,0.3899]
[1738342565085,0.923086,3405.3,3404.6,0.3899]
[1738342565989,3.859756,3405.3,3404.6,0.3899]
[1738342566184,2.93674,3405.2,3404.6,0.3899]
[1738342566345,0.55,3405.1,3404.6,0.3899]
[1738342566544,0.55,3404.9,3404.6,0.3899]
[1738342567143,0.55,3405.2,3404.6,0.3899]
[1738342567482,2.9362,3405.8,3404.6,0.3899]
[1738342567702,1.2983203,3405.9,3405.0,2.82325887]
[1738342567703,0.4904203,3405.9,3405.0,2.82325887]
[1738342567989,1.0034,3406.5,3405.1,0.3899]
[1738342568158,2.93567,3406.4,3405.2,0.3899]
[1738342568543,0.03670371,3406.3,3405.2,0.3899]
[1738342568739,2.93592,3406.1,3405.2,0.3899]
[1738342568944,0.39757737,3406.2,3405.2,0.3899]
[1738342569362,0.55,3406.1,3405.2,0.3899]
[1738342574080,0.0367048,3406.0,3405.2,0.3899]
[1738342574285,0.55,3405.8,3405.2,0.3899]
[1738342574598,0.5867048,3405.8,3405.2,0.3899]
[1738342574774,0.55,3405.8,3405.2,0.3899]
[1738342574974,0.55,3406.1,3405.2,0.3899]
[1738342575311,3.48591,3406.1,3405.2,0.3899]
[1738342575508,0.68192174,3406.0,3405.2,0.3899]
[1738342575710,0.55,3405.9,3405.2,0.3899]
[1738342576207,0.39757737,3406.2,3405.2,0.3899]
[1738342576410,0.55,3406.1,3405.2,0.3899]
[1738342578299,3.48591,3406.1,3405.2,0.3899]
[1738342578499,0.55,3405.9,3405.2,1.564821]
[1738342579514,3.48608,3405.9,3405.2,1.564821]
[1738342579715,6.42224,3405.9,3405.2,1.564821]
[1738342580011,3.48608,3405.9,3405.2,1.564821]
[1738342581024,2.93608,3405.9,3405.2,1.564821]
[1738342581308,1.47193674,3406.0,3404.9,0.3899]
[1738342581309,0.55,3405.3,3404.9,0.3899]
[1738342581517,0.0367127,3405.2,3405.0,1.175122]
[1738342581697,0.55,3405.1,3405.0,1.175122]
[1738342581900,0.55,3405.1,3404.6,0.3899]
[1738342581901,3.48677,3405.1,3404.6,0.3899]
[1738342582100,0.55,3404.9,3404.7,1.175229]
[1738342582877,0.55,3404.9,3404.3,0.3899]
[1738342583088,0.58671736,3404.9,3404.3,0.3899]
[1738342583294,0.55,3404.9,3404.4,1.175244]
[1738342583578,3.48712,3404.7,3404.4,1.175244]
[1738342583778,0.55,3404.5,3404.0,0.3899]
[1738342584022,0.55,3404.6,3404.0,0.3899]
[1738342584231,0.58672085,3404.6,3404.3,1.175361]
[1738342584415,0.58672085,3404.6,3404.0,0.3899]
[1738342584730,0.58672085,3404.6,3404.1,1.175368]
[1738342584731,0.43368409,3404.5,3404.1,1.175368]
[1738342584931,0.5575,3404.4,3404.1,1.175368]
[1738342585089,2.93746,3404.3,3403.6,0.3899]
[1738342585284,0.55,3404.2,3403.7,1.175526]
[1738342585490,0.55,3403.9,3403.6,0.3899]
[1738342585927,0.55,3404.0,3403.6,0.3899]
[1738342586284,0.55,3404.0,3403.6,0.9399]
[1738342586489,0.55,3404.1,3403.6,0.9399]
[1738342586788,0.428792,3404.0,3403.6,0.9399]
[1738342586990,0.55,3404.1,3403.6,0.9399]
[1738342587230,0.8219,3404.6,3403.6,0.9399]
[1738342587539,2.93707,3404.8,3403.6,0.9399]
[1738342588455,0.5575,3404.4,3403.6,0.9399]
[1738342588756,3.48748,3404.3,3403.6,0.9399]
[1738342588925,0.643243,3404.2,3403.6,0.9399]
[1738342589121,2.93724,3404.6,3403.6,0.9399]
[1738342589341,0.55,3404.5,3403.6,0.9399]
[1738342591052,2.93724,3404.6,3403.6,0.9399]
[1738342591053,0.55,3404.6,3403.6,0.9399]
[1738342591415,3.48726,3404.6,3403.6,0.9399]
[1738342591840,3.48742,3404.4,3403.6,0.9399]
[1738342592028,1.29892042,3404.4,3403.6,0.9399]
[1738342592521,3.14018,3404.7,3403.6,0.9399]
[1738342592852,0.203,3404.7,3403.6,0.9399]
[1738342593049,0.55,3404.6,3403.6,0.9399]
[1738342594729,0.58564775,3405.1,3403.7,0.3899]
[1738342594927,0.9607,3405.5,3403.9,0.3899]
[1738342595126,0.7577,3405.5,3403.9,0.3899]
[1738342595638,3.69414,3405.5,3403.9,0.3899]
[1738342595805,0.55,3405.4,3403.9,0.3899]
[1738342596210,3.48651,3405.4,3403.9,0.3899]
[1738342596410,3.48676,3405.2,3403.9,0.3899]
[1738342596683,0.55,3405.0,3404.0,0.3899]
[1738342597026,0.55,3404.7,3404.0,0.3899]
[1738342597629,0.55,3404.5,3404.0,0.3899]
[1738342598130,0.5575,3404.7,3404.0,0.3899]
[1738342598325,0.55,3404.3,3403.7,0.3899]
[1738342599566,0.55,3404.5,3403.7,0.3899]
[1738342600145,0.369274,3404.7,3403.7,0.3899]
[1738342600522,0.0367218,3404.6,3403.7,0.3899]
[1738342600841,0.369274,3404.7,3403.7,0.3899]
[1738342601044,0.55,3404.6,3403.7,0.3899]
[1738342602418,1.10925063,3404.6,3403.7,0.3899]
[1738342602767,0.55,3404.0,3403.0,0.3899]
[1738342602996,0.55,3404.2,3403.1,0.3899]
[1738342603182,0.55,3404.0,3403.1,0.3899]
[1738342603382,0.55,3403.8,3403.1,0.3899]
[1738342603704,0.55,3403.6,3403.1,0.3899]
[1738342603849,0.55,3403.8,3403.1,3.3899]
[1738342604255,3.49524,3404.0,3403.1,3.3899]
[1738342604662,3.8943,3404.3,3403.1,3.3899]
[1738342604898,3.32779,3404.2,3403.2,0.3899]
[1738342605056,3.49515,3404.1,3403.2,0.3899]
[1738342605453,0.55,3403.8,3402.9,0.3899]
[1738342605698,0.55,3403.3,3402.9,0.3899]
[1738342606008,0.55,3403.1,3402.2,1.565741]
[1738342606290,0.55,3403.1,3402.2,0.3899]
[1738342607180,0.03673693,3403.0,3402.2,0.3899]
[1738342607383,0.03673693,3403.0,3402.3,3.0]
[1738342607756,1.0137,3403.7,3402.4,0.3899]
[1738342608103,0.72570877,3403.5,3402.4,0.3899]
[1738342608299,0.55,3403.4,3402.4,0.3899]
[1738342609473,0.03673474,3403.3,3402.4,0.3899]
[1738342609687,0.55,3403.2,3402.4,0.3899]
[1738342609888,0.0075,3403.3,3402.4,0.3899]
[1738342610159,0.4184694,3403.2,3402.4,0.3899]
[1738342610387,3.95919,3403.7,3402.4,0.3899]
[1738342610595,0.0367344,3403.6,3402.5,3.0]
[1738342610762,0.55,3403.6,3402.5,3.0]
[1738342611571,0.55,3403.6,3402.6,0.3899]
[1738342611769,0.55,3403.4,3402.6,0.3899]
[1738342612426,0.55,3403.6,3402.6,0.3899]
[1738342612720,0.203,3403.9,3402.6,0.3899]
[1738342612872,0.55,3403.8,3402.6,0.3899]
[1738342614239,0.5575,3403.9,3402.6,0.3899]
[1738342614379,0.50464023,3403.8,3402.7,0.3899]
[1738342614783,0.59205227,3404.1,3402.8,0.4046007]
[1738342614986,0.52253025,3404.6,3403.0,3.0]
[1738342615184,0.7583,3404.9,3402.6,1.089652]
[1738342615185,0.7583,3404.9,3403.3,0.3899]
[1738342615519,0.79502104,3404.9,3403.3,0.3899]
[1738342616019,0.5575,3404.5,3403.3,0.3899]
[1738342617027,3.49499,3404.3,3403.3,0.3899]
[1738342617184,0.55,3404.1,3403.3,0.3899]
[1738342619622,3.52435935,3404.1,3403.3,0.3899]
[1738342620640,0.0075,3404.0,3403.3,0.3899]
[1738342620818,2.93804,3403.7,3402.3,0.3899]
[1738342621134,0.55,3403.4,3402.5,3.0]
[1738342622027,0.55,3403.4,3402.4,8.76]
[1738342622240,0.55,3403.2,3402.5,3.0]
[1738342622445,0.55,3403.0,3402.3,0.3899]
[1738342622737,3.7586,3403.5,3402.6,0.03743561]
[1738342622738,0.55,3402.8,3402.6,0.03743561]
[1738342623106,0.55,3403.2,3402.6,0.03743561]
[1738342623302,0.55,3403.0,3402.6,0.03743561]
[1738342623504,0.55,3402.8,3402.6,0.03743561]
[1738342623919,0.0075,3403.1,3402.6,0.03743561]
[1738342624132,0.55,3403.0,3402.6,0.03743561]
[1738342625136,0.55,3402.8,3402.6,0.03743561]
[1738342626406,0.55,3403.0,3402.6,0.03743561]
[1738342627440,0.55,3403.0,3402.6,1.03743561]
[1738342627733,0.0075,3402.9,3402.6,1.03743561]
[1738342627940,0.55,3402.8,3402.6,1.03743561]
[1738342628110,0.96356613,3402.8,3402.6,1.03743561]